[Event "FIDE WCCC Open-08 2024"]
[Site "Montesilvano"]
[Date "2024.11.20"]
[Round "6.11"]
[White "Kapitanski, Furion"]
[Black "Mankovich, Yoav"]
[Result "1/2-1/2"]
[ECO "B35"]
[WhiteElo "1707"]
[BlackElo "1490"]
[Annotator "NA RC"]
[PlyCount "154"]
[EventDate "2024.11.18"]
[EventType "swiss"]
[EventCountry "ITA"]
[SourceTitle "playchess.com"]
[Source "ChessBase"]
[SourceQuality "1"]
[TimeControl "5400+30"]

1. e4 {[%emt 0:00:06]} c5 {[%emt 0:00:43]} 2. Nf3 {[%emt 0:00:08]} Nc6 {[%emt 0:01:40]} 3. d4 {[%emt 0:00:09]} cxd4 {[%emt 0:01:07]} 4. Nxd4 {[%emt 0:00:09]} g6 {[%emt 0:00:29]} 5. Nc3 {[%emt 0:00:54]} Bg7 {[%emt 0:00:51]} 6. Be3 {[%emt 0:00:30]} Nf6 {[%emt 0:01:35]} 7. Bc4 {[%emt 0:00:25]} O-O {[%emt 0:00:15]} 8. h3 {[%emt 0:06:53]} Nxe4 {[%emt 0:05:06]} 9. Nxe4 {[%emt 0:00:41]} d5 {[%emt 0:00:21]} 10. c3 {[%emt 0:06:28]} dxc4 {[%emt 0:01:32]} 11. O-O {[%emt 0:00:43]} Nxd4 {[%emt 0:14:48]} 12. Bxd4 {[%emt 0:03:18]} e5 {[%emt 0:02:35]} 13. Bc5 {[%emt 0:06:17]} Re8 {[%emt 0:02:20]} 14. Nd6 {[%emt 0:01:32]} Re6 {[%emt 0:01:06]} 15. Nxc4 {[%emt 0:19:50]} Qc7 {[%emt 0:02:44]} 16. Ba3 {[%emt 0:04:33]} b5 {[%emt 0:01:45]} 17. Nd6 {[%emt 0:02:21]} Bd7 {[%emt 0:01:36]} 18. Qd3 {[%emt 0:11:13]} a6 {[%emt 0:01:07]} 19. Rfd1 {[%emt 0:12:12]} Bc6 {[%emt 0:05:28]} 20. Rac1 {[%emt 0:00:55]} Bh6 {[%emt 0:01:26]} 21. Rc2 {[%emt 0:01:15]} e4 {[%emt 0:02:45]} 22. Qg3 {[%emt 0:06:42]} Rd8 {[%emt 0:11:55]} 23. Rd4 {[%emt 0:05:29]} Rd7 {[%emt 0:09:33]} 24. Nf5 {[%emt 0:04:08]} Bf4 {[%emt 0:00:55]} 25. Rxd7 {[%emt 0:02:15]} Bxd7 {[%emt 0:00:25]} 26. Nh6+ {[%emt 0:00:28]} Kh8 {[%emt 0:00:53]} 27. Qh4 {[%emt 0:00:50]} Kg7 {[%emt 0:05:58]} 28. Ng4 {[%emt 0:00:37]} h5 {[%emt 0:01:38]} 29. Ne3 {[%emt 0:00:47]} Bxe3 {[%emt 0:17:21]} 30. fxe3 {[%emt 0:00:08]} a5 {[%emt 0:01:02]} 31. Re2 {[%emt 0:00:47]} Qc4 {[%emt 0:01:16]} 32. Qe1 {[%emt 0:01:14]} Re5 {[%emt 0:01:03]} 33. b3 {[%emt 0:00:12]} Qc6 {[%emt 0:00:57]} 34. Bb2 {[%emt 0:00:05]} Rg5 {[%emt 0:00:53]} 35. c4+ {[%emt 0:00:17]} Kh7 {[%emt 0:00:16]} 36. Qc3 {[%emt 0:00:15]} f6 {[%emt 0:00:30]} 37. Qxf6 {[%emt 0:01:01]} Qxf6 {[%emt 0:00:13]} 38. Bxf6 {[%emt 0:00:07]} Rf5 {[%emt 0:00:19]} 39. Rd2 {[%emt 0:00:22]} Be6 {[%emt 0:00:37]} 40. Bd8 {[%emt 0:02:41]} bxc4 {[%emt 0:00:21]} 41. bxc4 {[%emt 0:00:12]} Bxc4 {[%emt 0:00:06]} 42. a3 {[%emt 0:00:38]} Rb5 {[%emt 0:00:20]} 43. Rd4 {[%emt 0:00:32]} Bd3 {[%emt 0:02:53]} 44. Ra4 {[%emt 0:00:20]} Rb1+ {[%emt 0:01:47]} 45. Kf2 {[%emt 0:00:35]} Rf1+ {[%emt 0:00:00]} 46. Kg3 {[%emt 0:00:15]} Re1 {[%emt 0:00:00]} 47. Bg5 {[%emt 0:01:21]} Kg7 {[%emt 0:00:34]} 48. Rxa5 {[%emt 0:00:10]} Kf7 {[%emt 0:00:10]} 49. Re5 {[%emt 0:00:23]} Ra1 {[%emt 0:00:46]} 50. Re7+ {[%emt 0:00:18]} Kf8 {[%emt 0:00:09]} 51. Ra7 {[%emt 0:00:18]} Ra2 {[%emt 0:00:54]} 52. Rc7 {[%emt 0:01:29]} Kg8 {[%emt 0:00:18]} 53. Bf6 {[%emt 0:00:31]} Rxa3 {[%emt 0:00:39]} 54. Rg7+ {[%emt 0:00:11]} Kf8 {[%emt 0:00:21]} 55. Rxg6 {[%emt 0:00:08]} Kf7 {[%emt 0:00:16]} 56. Rh6 {[%emt 0:00:29]} Ra6 {[%emt 0:00:25]} 57. Bg5 {[%emt 0:00:34]} Rxh6 {[%emt 0:00:13]} 58. Bxh6 {[%emt 0:00:07]} Kg6 {[%emt 0:00:15]} 59. Bf4 {[%emt 0:00:10]} Bc2 {[%emt 0:00:34]} 60. Kh4 {[%emt 0:00:46]} Bd3 {[%emt 0:00:30]} 61. g4 {[%emt 0:00:22]} hxg4 {[%emt 0:00:21]} 62. Kxg4 {[%emt 0:00:33]} Be2+ {[%emt 0:00:26]} 63. Kg3 {[%emt 0:00:14]} Bd3 {[%emt 0:00:29]} 64. Be5 {[%emt 0:00:32]} Kh5 {[%emt 0:00:37]} 65. Bf6 {[%emt 0:00:39]} Kg6 {[%emt 0:00:30]} 66. Bd8 {[%emt 0:00:08]} Kh5 {[%emt 0:00:21]} 67. Kf4 {[%emt 0:00:13]} Bc2 {[%emt 0:00:47]} 68. Kf5 {[%emt 0:00:46]} Bd3 {[%emt 0:00:15]} 69. Kf4 {[%emt 0:00:53]} Bc2 {[%emt 0:00:09]} 70. Kg3 {[%emt 0:00:05]} Bd3 {[%emt 0:00:13]} 71. Bc7 {[%emt 0:00:32]} Bc2 {[%emt 0:00:06]} 72. Bd8 {[%emt 0:00:10]} Bd3 {[%emt 0:00:15]} 73. Bc7 {[%emt 0:00:07]} Bc2 {[%emt 0:00:13]} 74. Bd8 {[%emt 0:00:08]} Bd3 {[%emt 0:00:08]} 75. Bc7 {[%emt 0:00:08]} Bc2 {[%emt 0:00:07]} 76. Bd8 {[%emt 0:00:30]} Bd3 {[%emt 0:00:09]} 77. Bc7 {[%emt 0:00:25]} Bc2 {[%emt 0:00:06]} 1/2-1/2

[Event "FIDE WCCC Open-08 2024"]
[Site "Montesilvano"]
[Date "2024.11.20"]
[Round "6.12"]
[White "Su, Milo"]
[Black "Sahin, Bora"]
[Result "1-0"]
[ECO "B40"]
[WhiteElo "1696"]
[BlackElo "1703"]
[Annotator "NA RC"]
[PlyCount "67"]
[EventDate "2024.11.18"]
[EventType "swiss"]
[EventCountry "ITA"]
[SourceTitle "playchess.com"]
[Source "ChessBase"]
[SourceQuality "1"]
[TimeControl "5400+30"]

1. e4 {[%emt 0:00:02]} c5 {[%emt 0:00:12]} 2. Nf3 {[%emt 0:00:05]} e6 {[%emt 0:00:04]} 3. c3 {[%emt 0:00:04]} Nf6 {[%emt 0:00:03]} 4. Bd3 {[%emt 0:00:05]} Nc6 {[%emt 0:00:27]} 5. Bc2 {[%emt 0:00:05]} d5 {[%emt 0:01:20]} 6. e5 {[%emt 0:00:09]} Nd7 {[%emt 0:00:57]} 7. d4 {[%emt 0:00:40]} b5 {[%emt 0:01:26]} 8. O-O {[%emt 0:00:20]} Bb7 {[%emt 0:02:29]} 9. Re1 {[%emt 0:00:36]} Be7 {[%emt 0:03:17]} 10. a3 {[%emt 0:00:24]} a5 {[%emt 0:04:18]} 11. h3 {[%emt 0:04:42]} Rc8 {[%emt 0:02:29]} 12. Bf4 {[%emt 0:01:14]} Qb6 {[%emt 0:00:15]} 13. Bg3 {[%emt 0:02:38]} h6 {[%emt 0:06:54]} 14. Kh1 {[%emt 0:00:33]} a4 {[%emt 0:01:40]} 15. Kh2 {[%emt 0:02:35]} g5 {[%emt 0:00:47]} 16. Qd2 {[%emt 0:01:02]} cxd4 {[%emt 0:04:45]} 17. cxd4 {[%emt 0:03:54]} Na5 {[%emt 0:03:38]} 18. Qe2 {[%emt 0:07:37]} Ba6 {[%emt 0:07:53]} 19. Qd1 {[%emt 0:08:50]} h5 {[%emt 0:06:04]} 20. Kh1 {[%emt 0:03:37]} Qc6 {[%emt 0:03:47]} 21. Nc3 {[%emt 0:01:12]} Nc4 {[%emt 0:00:57]} 22. Qc1 {[%emt 0:07:18]} Bxa3 {[%emt 0:07:17]} 23. bxa3 {[%emt 0:00:35]} g4 {[%emt 0:05:54]} 24. Ng5 {[%emt 0:03:01]} Rg8 {[%emt 0:08:09]} 25. Qf4 {[%emt 0:00:31]} Rg7 {[%emt 0:01:18]} 26. Nxf7 {[%emt 0:01:45]} Rc7 {[%emt 0:04:50]} 27. Ng5 {[%emt 0:01:48]} Qb6 {[%emt 0:07:06]} 28. Nh7 {[%emt 0:04:40]} Rf7 {[%emt 0:02:35]} 29. Bg6 {[%emt 0:00:14]} Nb8 {[%emt 0:03:44]} 30. Ng5 {[%emt 0:02:36]} Rce7 {[%emt 0:00:36]} 31. Nxf7 {[%emt 0:00:51]} Kd7 {[%emt 0:00:10]} 32. Bh4 {[%emt 0:00:40]} Re8 {[%emt 0:00:04]} 33. Ng5 {[%emt 0:00:22]} Re7 {[%emt 0:00:42]} 34. Nh7 {[%emt 0:00:53]} 1-0

[Event "FIDE WCCC Open-08 2024"]
[Site "Montesilvano"]
[Date "2024.11.20"]
[Round "6.13"]
[White "Guo, Philipp Ziming"]
[Black "Cardas, Serghei"]
[Result "1-0"]
[ECO "E07"]
[WhiteElo "2139"]
[BlackElo "1627"]
[Annotator "RC"]
[PlyCount "115"]
[EventDate "2024.11.18"]
[EventType "swiss"]
[EventCountry "ITA"]
[SourceTitle "playchess.com"]
[Source "ChessBase"]
[SourceQuality "1"]
[TimeControl "5400+30"]

1. d4 {[%emt 0:00:02]} d5 {[%emt 0:00:06]} 2. c4 {[%emt 0:00:03]} e6 {[%emt 0:00:06]} 3. Nf3 {[%emt 0:00:05]} Nf6 {[%emt 0:00:19]} 4. g3 {[%emt 0:00:08]} c6 {[%emt 0:00:20]} 5. Bg2 {[%emt 0:00:05]} Be7 {[%emt 0:00:25]} 6. O-O {[%emt 0:00:08]} O-O {[%emt 0:00:17]} 7. Nbd2 {[%emt 0:02:03]} Nbd7 {[%emt 0:00:52]} 8. b3 {[%emt 0:01:14]} Re8 {[%emt 0:00:55]} 9. Bb2 {[%emt 0:01:52]} Qc7 {[%emt 0:01:57]} 10. Qc2 {[%emt 0:03:31]} Bd6 {[%emt 0:03:59]} 11. Rac1 {[%emt 0:02:29]} Nf8 {[%emt 0:01:11]} 12. Rfd1 {[%emt 0:01:23]} Ng6 {[%emt 0:01:16]} 13. a3 {[%emt 0:00:48]} Bd7 {[%emt 0:03:01]} 14. e3 {[%emt 0:05:55]} Rac8 {[%emt 0:02:13]} 15. b4 {[%emt 0:03:14]} a5 {[%emt 0:04:08]} 16. Qb3 {[%emt 0:02:04]} Ra8 {[%emt 0:02:44]} 17. Ne1 {[%emt 0:09:08]} b6 {[%emt 0:03:20]} 18. Nd3 {[%emt 0:00:38]} Qb8 {[%emt 0:04:27]} 19. f4 {[%emt 0:01:18]} Rc8 {[%emt 0:07:30]} 20. Ne5 {[%emt 0:02:19]} Qa7 {[%emt 0:04:23]} 21. Nxd7 {[%emt 0:07:11]} Qxd7 {[%emt 0:01:36]} 22. e4 {[%emt 0:01:08]} Be7 {[%emt 0:03:24]} 23. cxd5 {[%emt 0:01:24]} cxd5 {[%emt 0:00:59]} 24. f5 {[%emt 0:01:02]} exf5 {[%emt 0:01:20]} 25. exd5 {[%emt 0:00:33]} Rab8 {[%emt 0:04:33]} 26. Rc6 {[%emt 0:02:43]} Bf8 {[%emt 0:10:43]} 27. Nc4 {[%emt 0:01:20]} a4 {[%emt 0:01:31]} 28. Qf3 {[%emt 0:02:03]} Qd8 {[%emt 0:01:27]} 29. Ne5 {[%emt 0:03:11]} Ne7 {[%emt 0:01:12]} 30. Rxc8 {[%emt 0:00:34]} Rxc8 {[%emt 0:00:23]} 31. Nc6 {[%emt 0:01:07]} Qd6 {[%emt 0:01:20]} 32. Nxe7+ {[%emt 0:00:22]} Qxe7 {[%emt 0:01:50]} 33. d6 {[%emt 0:02:25]} Qxd6 {[%emt 0:00:52]} 34. Qxf5 {[%emt 0:00:02]} Re8 {[%emt 0:02:49]} 35. d5 {[%emt 0:00:57]} Qe7 {[%emt 0:07:35]} 36. Bxf6 {[%emt 0:04:20]} gxf6 {[%emt 0:03:49]} 37. d6 {[%emt 0:00:47]} Qe2 {[%emt 0:02:41]} 38. Qf3 {[%emt 0:00:57]} Qe6 {[%emt 0:01:18]} 39. d7 {[%emt 0:02:42]} Rd8 {[%emt 0:00:21]} 40. Qd3 {[%emt 0:00:13]} Be7 {[%emt 0:01:01]} 41. Be4 {[%emt 0:00:28]} h6 {[%emt 0:00:39]} 42. Bf5 {[%emt 0:00:30]} Qe5 {[%emt 0:00:27]} 43. Qe4 {[%emt 0:00:15]} Qxe4 {[%emt 0:01:11]} 44. Bxe4 {[%emt 0:00:02]} Kf8 {[%emt 0:00:15]} 45. Kf2 {[%emt 0:00:19]} Rb8 {[%emt 0:00:20]} 46. Kf3 {[%emt 0:00:30]} Bd8 {[%emt 0:00:16]} 47. Bf5 {[%emt 0:00:04]} Ke7 {[%emt 0:01:29]} 48. Ke4 {[%emt 0:00:11]} Bc7 {[%emt 0:00:17]} 49. Kd5 {[%emt 0:00:07]} Kd8 {[%emt 0:00:22]} 50. Rc1 {[%emt 0:02:24]} b5 {[%emt 0:00:08]} 51. Rc6 {[%emt 0:00:18]} Rb6 {[%emt 0:00:16]} 52. Rxb6 {[%emt 0:00:24]} Bxb6 {[%emt 0:00:08]} 53. Kc6 {[%emt 0:00:03]} Ke7 {[%emt 0:00:21]} 54. Kxb6 {[%emt 0:00:05]} Kd6 {[%emt 0:00:07]} 55. d8=Q+ {[%emt 0:00:05]} Ke5 {[%emt 0:00:08]} 56. Qd3 {[%emt 0:00:08]} h5 {[%emt 0:00:09]} 57. Kc6 {[%emt 0:00:03]} h4 {[%emt 0:00:09]} 58. Qe4# {[%emt 0:21:32]} 1-0

[Event "FIDE WCCC Open-08 2024"]
[Site "Montesilvano"]
[Date "2024.11.20"]
[Round "6.14"]
[White "Rajabov, Abdurahmon"]
[Black "Lan, Kai Zhou"]
[Result "0-1"]
[ECO "B24"]
[WhiteElo "1515"]
[BlackElo "1784"]
[Annotator "NA RC"]
[PlyCount "116"]
[EventDate "2024.11.18"]
[EventType "swiss"]
[EventCountry "ITA"]
[SourceTitle "playchess.com"]
[Source "ChessBase"]
[SourceQuality "1"]
[TimeControl "5400+30"]

1. e4 {[%emt 0:00:01]} c5 {[%emt 0:00:07]} 2. Nc3 e6 {[%emt 0:00:15]} 3. g3 {[%emt 0:00:12]} Nc6 {[%emt 0:00:29]} 4. Bg2 {[%emt 0:00:04]} Nf6 {[%emt 0:00:13]} 5. d3 {[%emt 0:00:03]} d5 {[%emt 0:01:03]} 6. Bg5 {[%emt 0:04:14]} d4 {[%emt 0:05:22]} 7. Nce2 {[%emt 0:01:11]} Be7 {[%emt 0:00:32]} 8. Bd2 {[%emt 0:02:05]} O-O {[%emt 0:01:51]} 9. f4 {[%emt 0:00:17]} g6 {[%emt 0:02:00]} 10. Nf3 {[%emt 0:00:20]} c4 {[%emt 0:00:58]} 11. e5 {[%emt 0:01:26]} cxd3 {[%emt 0:00:21]} 12. cxd3 {[%emt 0:00:16]} Nd5 {[%emt 0:00:24]} 13. O-O {[%emt 0:01:06]} Qb6 {[%emt 0:02:31]} 14. b3 {[%emt 0:17:11]} Rd8 {[%emt 0:04:14]} 15. g4 {[%emt 0:00:40]} Nc3 {[%emt 0:02:03]} 16. Qe1 {[%emt 0:04:05]} Nb4 {[%emt 0:03:12]} 17. Bxc3 Nxd3 {[%emt 0:03:17]} 18. Bxd4 {[%emt 1:02:49]} Nxe1 {[%emt 0:00:14]} 19. Bxb6 {[%emt 0:00:04]} Nxf3+ {[%emt 0:00:08]} 20. Bxf3 {[%emt 0:00:06]} axb6 {[%emt 0:00:07]} 21. a4 {[%emt 0:00:50]} Bc5+ {[%emt 0:00:45]} 22. Kg2 {[%emt 0:00:24]} Rb8 {[%emt 0:01:59]} 23. Rfd1 {[%emt 0:00:21]} Bd7 {[%emt 0:00:30]} 24. Nc3 {[%emt 0:00:09]} Bb4 {[%emt 0:00:59]} 25. Ne4 {[%emt 0:00:13]} Bc6 {[%emt 0:02:22]} 26. Nf6+ {[%emt 0:00:01]} Kg7 {[%emt 0:00:12]} 27. g5 {[%emt 0:00:07]} Bd2 {[%emt 0:00:35]} 28. Bxc6 {[%emt 0:01:31]} bxc6 {[%emt 0:00:13]} 29. Kg3 {[%emt 0:00:09]} Rd3+ {[%emt 0:00:52]} 30. Kg4 {[%emt 0:00:12]} Rd4 {[%emt 0:00:56]} 31. Rf1 {[%emt 0:00:06]} Rbd8 {[%emt 0:00:38]} 32. Rad1 {[%emt 0:00:15]} Kf8 {[%emt 0:02:31]} 33. Nxh7+ {[%emt 0:00:25]} Ke7 {[%emt 0:00:13]} 34. Nf6 {[%emt 0:00:25]} Rb4 {[%emt 0:03:26]} 35. Ng8+ {[%emt 0:03:07]} Kf8 {[%emt 0:01:50]} 36. Nf6 {[%emt 0:00:30]} Rdd4 {[%emt 0:00:30]} 37. Ne4 {[%emt 0:00:30]} Rxe4 {[%emt 0:00:30]} 38. Rxd2 {[%emt 0:00:30]} Rxe5 {[%emt 0:00:30]} 39. Rc1 {[%emt 0:00:30]} c5 {[%emt 0:00:30]} 40. Rd8+ {[%emt 0:00:30]} Kg7 41. Rc3 {[%emt 0:01:38]} Ree4 {[%emt 0:10:32]} 42. Rf3 {[%emt 0:00:30]} e5 {[%emt 0:00:30]} 43. Rd5 {[%emt 0:00:30]} Rxf4+ {[%emt 0:00:30]} 44. Rxf4 {[%emt 0:00:30]} Rxf4+ {[%emt 0:00:30]} 45. Kg3 {[%emt 0:00:30]} Rd4 {[%emt 0:00:30]} 46. Rxe5 {[%emt 0:00:30]} Rd3+ {[%emt 0:00:30]} 47. Kg4 {[%emt 0:00:30]} Rxb3 {[%emt 0:00:30]} 48. a5 {[%emt 0:00:30]} c4 {[%emt 0:00:30]} 49. a6 {[%emt 0:00:30]} Ra3 {[%emt 0:00:30]} 50. Re4 {[%emt 0:00:30]} c3 {[%emt 0:00:30]} 51. Rc4 {[%emt 0:00:30]} b5 {[%emt 0:00:30]} 52. Rc7 {[%emt 0:00:30]} b4 {[%emt 0:00:30]} 53. Rc4 {[%emt 0:00:30]} Rxa6 {[%emt 0:00:30]} 54. Rxb4 {[%emt 0:00:30]} c2 {[%emt 0:00:30]} 55. Rc4 {[%emt 0:00:30]} Ra4 {[%emt 0:00:30]} 56. Rxa4 {[%emt 0:00:30]} c1=Q {[%emt 0:51:36]} 57. Rf4 {[%emt 0:00:00]} Qg1+ {[%emt 0:00:00]} 58. Kf3 {[%emt 0:00:00]} Qxh2 {[%emt 0:00:00]} 0-1

[Event "FIDE WCCC Open-08 2024"]
[Site "Montesilvano"]
[Date "2024.11.20"]
[Round "6.15"]
[White "Pham, Han Nam"]
[Black "Movsisyan, Samvel"]
[Result "1-0"]
[ECO "A01"]
[WhiteElo "1912"]
[BlackElo "1604"]
[Annotator "NA RC"]
[PlyCount "119"]
[EventDate "2024.11.18"]
[EventType "swiss"]
[EventCountry "ITA"]
[SourceTitle "playchess.com"]
[Source "ChessBase"]
[SourceQuality "1"]
[TimeControl "5400+30"]

1. b3 {[%emt 0:00:32]} e5 {[%emt 0:01:22]} 2. Bb2 {[%emt 0:00:45]} Nc6 {[%emt 0:00:32]} 3. Nf3 {[%emt 0:01:28]} d6 {[%emt 0:00:14]} 4. c4 {[%emt 0:00:37]} Nge7 {[%emt 0:02:33]} 5. d4 {[%emt 0:01:23]} exd4 {[%emt 0:02:31]} 6. Nxd4 {[%emt 0:00:24]} Nxd4 {[%emt 0:00:31]} 7. Qxd4 {[%emt 0:02:10]} Be6 {[%emt 0:01:08]} 8. e4 {[%emt 0:04:40]} Nc6 {[%emt 0:00:31]} 9. Qd2 {[%emt 1:23:01]} Qh4 {[%emt 0:03:54]} 10. Nc3 {[%emt 0:00:00]} Be7 {[%emt 0:01:45]} 11. g3 {[%emt 0:00:00]} Qg4 {[%emt 0:00:34]} 12. Bg2 {[%emt 0:00:00]} Ne5 {[%emt 0:01:37]} 13. Qe2 {[%emt 0:00:00]} h5 {[%emt 0:14:40]} 14. f4 {[%emt 0:00:00]} Nc6 {[%emt 0:00:47]} 15. Qxg4 {[%emt 0:00:00]} hxg4 {[%emt 0:00:47]} 16. f5 {[%emt 0:00:00]} Bd7 {[%emt 0:00:15]} 17. Nd5 {[%emt 0:00:00]} O-O-O {[%emt 0:00:49]} 18. Bxg7 {[%emt 0:00:00]} Rhe8 {[%emt 0:03:29]} 19. Kf2 {[%emt 0:00:00]} Bg5 {[%emt 0:05:32]} 20. Bf6 {[%emt 0:00:00]} Bxf6 {[%emt 0:01:32]} 21. Nxf6 {[%emt 0:00:00]} Re5 {[%emt 0:00:55]} 22. Nxg4 {[%emt 0:00:00]} Ra5 {[%emt 0:00:07]} 23. a4 {[%emt 0:00:00]} Nd4 {[%emt 0:00:19]} 24. Rab1 {[%emt 0:00:00]} Nxf5 {[%emt 0:02:27]} 25. Nf6 {[%emt 0:00:00]} Nd4 {[%emt 0:02:06]} 26. Ke3 {[%emt 0:00:00]} Nc6 {[%emt 0:03:04]} 27. Rbf1 {[%emt 0:00:00]} Ne5 {[%emt 0:00:37]} 28. h4 {[%emt 0:00:00]} Rh8 {[%emt 0:01:29]} 29. Bh3 {[%emt 0:00:00]} Bxh3 {[%emt 0:00:38]} 30. Rxh3 {[%emt 0:00:00]} Ra6 {[%emt 0:00:50]} 31. g4 {[%emt 0:00:00]} Rb6 {[%emt 0:03:21]} 32. Kd2 {[%emt 0:00:00]} a5 {[%emt 0:06:13]} 33. g5 {[%emt 0:00:00]} Kd8 {[%emt 0:03:13]} 34. h5 {[%emt 0:00:00]} c6 {[%emt 0:03:57]} 35. Rg3 {[%emt 0:00:00]} Ke7 {[%emt 0:10:02]} 36. g6 {[%emt 0:00:00]} fxg6 {[%emt 0:00:22]} 37. hxg6 {[%emt 0:00:00]} Nxg6 {[%emt 0:24:17]} 38. Rxg6 {[%emt 0:00:00]} Rxb3 {[%emt 0:00:00]} 39. Ng4 {[%emt 0:00:00]} Kd8 {[%emt 0:00:00]} 40. Rxd6+ {[%emt 0:00:00]} Kc7 {[%emt 0:00:00]} 41. Rd3 {[%emt 0:00:00]} Rb4 {[%emt 0:00:00]} 42. Rc3 {[%emt 0:00:00]} Rxa4 {[%emt 0:00:00]} 43. e5 {[%emt 0:00:00]} Re8 {[%emt 0:00:00]} 44. Rf7+ {[%emt 0:00:00]} Kc8 {[%emt 0:00:00]} 45. Rf6 {[%emt 0:00:00]} Kc7 {[%emt 0:00:00]} 46. e6 {[%emt 0:00:00]} Ra2+ {[%emt 0:00:00]} 47. Ke3 {[%emt 0:00:00]} Rg2 {[%emt 0:00:00]} 48. Kf3 {[%emt 0:00:00]} Rd2 {[%emt 0:00:00]} 49. Re3 {[%emt 0:00:00]} Re7 {[%emt 0:00:00]} 50. Rf7 {[%emt 0:00:00]} Kd8 {[%emt 0:00:00]} 51. Nh6 {[%emt 0:00:00]} Ke8 {[%emt 0:00:00]} 52. Rxe7+ {[%emt 0:00:00]} Kxe7 {[%emt 0:00:00]} 53. Nf5+ {[%emt 0:00:00]} Ke8 {[%emt 0:00:00]} 54. e7 {[%emt 0:00:00]} Rd8 {[%emt 0:00:00]} 55. exd8=Q+ {[%emt 0:00:00]} Kxd8 {[%emt 0:00:00]} 56. c5 {[%emt 0:00:00]} Kc7 {[%emt 0:00:00]} 57. Re7+ {[%emt 0:00:00]} Kb8 {[%emt 0:00:00]} 58. Nd6 {[%emt 0:00:00]} Ka7 {[%emt 0:00:00]} 59. Rxb7+ {[%emt 0:00:00]} Ka6 {[%emt 0:00:00]} 60. Ke4 {[%emt 0:25:30]} 1-0

[Event "FIDE WCCC Open-08 2024"]
[Site "Montesilvano"]
[Date "2024.11.20"]
[Round "6.16"]
[White "Nurshin, Nurali"]
[Black "Dzelnik, Robert"]
[Result "1-0"]
[ECO "C57"]
[WhiteElo "1612"]
[BlackElo "1822"]
[Annotator "NA RC"]
[PlyCount "61"]
[EventDate "2024.11.18"]
[EventType "swiss"]
[EventCountry "ITA"]
[SourceTitle "playchess.com"]
[Source "ChessBase"]
[SourceQuality "1"]
[TimeControl "5400+30"]

1. e4 {[%emt 0:00:07]} e5 {[%emt 0:00:06]} 2. Nf3 {[%emt 0:00:30]} Nc6 {[%emt 0:00:09]} 3. Bc4 {[%emt 0:00:09]} Nf6 {[%emt 0:00:27]} 4. Ng5 {[%emt 0:00:36]} Nxe4 {[%emt 0:00:34]} 5. Bxf7+ {[%emt 0:00:24]} Ke7 {[%emt 0:00:10]} 6. d4 {[%emt 0:00:28]} Nxd4 {[%emt 0:03:05]} 7. c3 {[%emt 0:03:54]} Nc6 {[%emt 0:01:36]} 8. Bd5 {[%emt 0:01:18]} Nd6 {[%emt 0:02:35]} 9. Ne6 {[%emt 0:01:05]} dxe6 {[%emt 0:01:41]} 10. Bg5+ {[%emt 0:00:10]} Kd7 {[%emt 0:00:08]} 11. Bxc6+ {[%emt 0:00:11]} bxc6 {[%emt 0:00:09]} 12. Bxd8 {[%emt 0:00:13]} Kxd8 {[%emt 0:00:05]} 13. Nd2 {[%emt 0:00:31]} Ba6 {[%emt 0:00:16]} 14. Nf3 {[%emt 0:00:46]} Be7 {[%emt 0:00:31]} 15. Nxe5 {[%emt 0:00:15]} Bb7 {[%emt 0:00:20]} 16. Nf7+ {[%emt 0:00:11]} Kd7 {[%emt 0:00:06]} 17. Nxh8 {[%emt 0:00:14]} Rxh8 {[%emt 0:00:10]} 18. c4 {[%emt 0:00:29]} c5 {[%emt 0:00:04]} 19. Qa4+ {[%emt 0:00:35]} Bc6 {[%emt 0:00:10]} 20. Qxa7 {[%emt 0:00:27]} Ra8 {[%emt 0:00:08]} 21. Qxc5 {[%emt 0:00:13]} Nf5 {[%emt 0:00:07]} 22. O-O-O+ {[%emt 0:00:55]} Ke8 {[%emt 0:00:01]} 23. Qxc6+ {[%emt 0:00:15]} Kf7 {[%emt 0:00:05]} 24. Qxa8 {[%emt 0:00:09]} Ba3 {[%emt 0:00:01]} 25. Qxa3 {[%emt 0:00:30]} Ne3 {[%emt 0:00:00]} 26. Rd7+ {[%emt 0:00:01]} Kf6 {[%emt 0:00:00]} 27. Qxe3 {[%emt 0:00:07]} e5 {[%emt 0:00:00]} 28. Re1 {[%emt 0:00:15]} g5 {[%emt 0:00:00]} 29. Qxe5+ {[%emt 0:00:11]} Kg6 {[%emt 0:00:00]} 30. Qe6+ {[%emt 0:00:16]} Kh5 {[%emt 0:00:00]} 31. Rxh7# {[%emt 0:00:13]} 1-0

[Event "FIDE WCCC Open-08 2024"]
[Site "Montesilvano"]
[Date "2024.11.20"]
[Round "6.17"]
[White "Ayaan Phutane"]
[Black "Muratshin, Ramazan"]
[Result "1-0"]
[ECO "D35"]
[WhiteElo "1796"]
[BlackElo "1597"]
[Annotator "NA RC"]
[PlyCount "89"]
[EventDate "2024.11.18"]
[EventType "swiss"]
[EventCountry "ITA"]
[SourceTitle "playchess.com"]
[Source "ChessBase"]
[SourceQuality "1"]
[TimeControl "5400+30"]

1. d4 {[%emt 0:00:06]} d5 {[%emt 0:00:04]} 2. c4 {[%emt 0:00:06]} e6 {[%emt 0:00:05]} 3. cxd5 {[%emt 0:00:09]} exd5 {[%emt 0:00:03]} 4. Nc3 {[%emt 0:00:08]} Nf6 {[%emt 0:00:07]} 5. Bg5 {[%emt 0:00:05]} c6 {[%emt 0:00:05]} 6. e3 {[%emt 0:00:06]} Be7 {[%emt 0:00:05]} 7. Bd3 {[%emt 0:00:06]} h6 {[%emt 0:00:07]} 8. Bf4 {[%emt 0:00:06]} O-O {[%emt 0:01:16]} 9. h3 {[%emt 0:00:22]} Be6 {[%emt 0:00:58]} 10. Nge2 {[%emt 0:00:16]} Nbd7 {[%emt 0:01:08]} 11. O-O {[%emt 0:00:16]} Nb6 {[%emt 0:00:38]} 12. Bh2 {[%emt 0:05:06]} Qd7 {[%emt 0:00:57]} 13. Qc2 {[%emt 0:02:41]} Bd6 {[%emt 0:18:56]} 14. Nf4 {[%emt 0:05:35]} Bxf4 {[%emt 0:02:11]} 15. Bxf4 {[%emt 0:03:01]} Nc4 {[%emt 0:00:29]} 16. b3 {[%emt 0:01:05]} Nb6 {[%emt 0:07:18]} 17. a4 {[%emt 0:04:21]} Qe7 {[%emt 0:01:13]} 18. a5 {[%emt 0:09:19]} Nbd7 {[%emt 0:00:29]} 19. Rfb1 {[%emt 0:01:03]} Rfc8 {[%emt 0:06:18]} 20. b4 {[%emt 0:01:10]} Nh5 {[%emt 0:05:12]} 21. Bh2 {[%emt 0:05:33]} Nhf6 {[%emt 0:14:13]} 22. Qe2 {[%emt 0:09:26]} Nh7 {[%emt 0:03:05]} 23. Na4 {[%emt 0:01:38]} Qg5 {[%emt 0:01:44]} 24. Bf4 {[%emt 0:01:00]} Qe7 {[%emt 0:00:24]} 25. Nc5 {[%emt 0:50:16]} Nxc5 {[%emt 0:35:55]} 26. bxc5 {[%emt 0:00:00]} Rd8 {[%emt 0:00:30]} 27. a6 {[%emt 0:00:00]} Bc8 {[%emt 0:00:00]} 28. axb7 {[%emt 0:01:30]} Bxb7 {[%emt 0:01:00]} 29. Bd6 {[%emt 0:00:30]} Qd7 {[%emt 0:00:30]} 30. Qc2 {[%emt 0:00:00]} Ng5 {[%emt 0:00:00]} 31. Bf5 {[%emt 0:00:00]} Ne6 {[%emt 0:00:00]} 32. Ra5 {[%emt 0:00:00]} Bc8 {[%emt 0:00:00]} 33. Bd3 {[%emt 0:00:00]} g6 {[%emt 0:00:00]} 34. Qe2 {[%emt 0:00:00]} f5 {[%emt 0:00:00]} 35. Qf3 {[%emt 0:00:00]} Ng5 {[%emt 0:00:00]} 36. Qg3 {[%emt 0:00:00]} Qf7 {[%emt 0:00:00]} 37. Bf4 {[%emt 0:00:00]} Qf6 {[%emt 0:00:00]} 38. Be5 {[%emt 0:00:00]} Qf7 {[%emt 0:00:00]} 39. f4 {[%emt 0:05:00]} Ne4 {[%emt 0:00:00]} 40. Bxe4 {[%emt 0:00:30]} dxe4 {[%emt 0:05:30]} 41. Qh4 {[%emt 0:00:00]} Qf8 {[%emt 0:00:00]} 42. Bd6 {[%emt 0:00:00]} Qe8 {[%emt 0:00:00]} 43. Qxh6 {[%emt 0:00:00]} Be6 {[%emt 0:00:00]} 44. Be5 {[%emt 0:00:00]} Rd7 {[%emt 0:00:00]} 45. Qh8+ {[%emt 0:00:00]} 1-0